{"text_format":"1","workbook":"xlsx","n_sheets":5,"sheets":["Stikprøve","Tabel til manuel brug","Metode","Beregninger","Graf til metode"],"not_rendered":{"charts":6,"images":2,"macros":1,"external_links":0,"defined_names":0,"comments":0,"pivot_tables":0},"unopened":[],"bounds":{"document_bytes":16777216,"sheet_cells":100000,"rows_first":2000,"rows_last":500,"rows_between":2000,"halvings":0,"cell_chars":16384,"cell_head_chars":4096},"cells_cut":0,"cells_raw":0,"read":"whole","date_system":"1900"}

{"sheet":"Stikprøve","index":0,"n_rows":170,"n_cols":25,"rows_kept":170,"cut":false,"hidden":false,"merged":[[19,19,19,27],[26,13,27,17],[20,19,25,27],[27,19,27,27],[29,19,29,22],[29,24,29,26],[18,1,18,4],[9,1,10,17],[13,1,14,17],[26,7,27,11],[29,7,29,18],[11,1,12,17],[21,7,21,15],[22,7,24,17],[20,1,21,1],[20,2,21,2],[20,3,20,4],[22,3,23,3],[22,4,23,4],[24,2,26,2],[53,19,53,23],[53,24,53,26],[54,19,57,27],[42,19,45,27],[47,24,47,26],[48,19,51,27],[47,19,47,23],[42,3,42,5],[41,19,41,22],[41,24,41,26],[30,19,33,27],[35,19,35,22],[36,19,39,27],[35,24,35,26],[30,10,30,18]]}
[]
[]
[null,"Vurdering af resultat fra stikprøvekontrol på koldtvandsmålere"]
[null,"Enkelt stikprøveplan",null,null,null,null,null,null,null,null,null,null,null,null,null,"2019-12-18"]
[]
[null,"Iht. bekendtgørelse nr. 582 af 28. maj 2018 skal en instrumentejer etablere en egenkontrol, der giver tilstrækkelig sikkerhed for, at brugstolerancen ikke overskrides på vandmålere, der anvendes til afregning. "]
[null,"Brugstolerancen er lig med det dobbelte af den tolerance, som var gældende, da vandmåleren blev bragt i omsætning (også kaldet verifikationsfejlsgrænsen). "]
[null,"Yderligere informationer kan findes følgende steder: ",null,null,"Måleteknisk vejledning CLM.VAND.01 ",null,null,null,null,null,"Sikkerhedsstyrelsens vejledning nr. 9464 af 20. juni 2018"]
[]
[null,"Vigtigt: Dette værktøj kan anvendes af instrumentejere (og målelaboratorier) som hjælp til at vurdere et stikprøveresultat og fastsætte tiden til næste stikprøve. Værktøjet er lavet ud fra de målepunkter, som er angivet i den måletekniske vejledning CLM.VAND.01 for en komplet måler og kan ikke anvendes for stikprøver, hvor der anvendes andre målepunkter."]
[]
[null,"Værktøjet adskiller sig dog fra metoden i CLM.VAND.01 ved, at målernes afvigelser vurderes ift. 9 kontrolgrænser i stedet for 3. Det betyder, at hvor metoden i CLM.VAND.01 kan give en forlængelse på 0, 3, 6 eller 9 år, så kan dette værktøj giver fra 0 til 9 år med alle mellemliggende år."]
[]
[null,"Det er altid instrumentejerens ansvar at afregningsmålere overholder brugstolerancen og derfor også dennes ansvar at beslutte, hvornår der for de konkrete målere skal udføres stikprøver. Det anbefales, at der også søges vejledning om dette ved det anvendte målerlaboratorium og eventuelt ved producenten af det konkrete måleinstrument. Vurderinger af de måletekniske forhold mm. kan skrives i de grå felter i højre side af arket."]
[]
[]
[null,"Vejledning: Udfyld de grønne felter. Resultater og anbefaling vises i de orange felter. Anvend ikke anbefalingen ukritisk. Tag altid selv stilling til, om anbefalingen virker fornuftig ift. stikprøven og øvrig viden om partiet."]
[]
[null,"Skema med målepunkter fra CLM.VAND.01: "]
[null,null,null,null,null,null,null,null,null,null,null,null,null,null,null,null,null,null,null,"Generelle bemærkninger til vurdering af resultat:"]
[null,"Måler er godkendt efter regelsættet i:","Volumenstrøm (flowhastighed), Q","Maksimalt tilladelig måleunøjagtighed",null,null,null,"Vurdering af resultater ift. næste stikprøve eller udskiftning:"]
[null,null,null,"Verifikationsfejlgrænsen for nye og reverificerede målere","Brugstolerancen for målere i drift",null,null,"(se fanen \"Metode\" for forklaring bag vurderingen)"]
[null,"MDIR 32.36-01*","Qmin ≤ Q < Qt","±5 %","±10 %",null,null,"Ud fra summen af afvigende målere i de to målepunkter og stikprøvens godkendelsestal anbefales det, at der maksimalt gives følgende antal år til næste stikprøve eller udskiftning: "]
[null,"MID","Q1 ≤ Q < Q2"]
[null,"MDIR 32.36-01*","Qt ≤ Q < Qmax","Koldtvandsmålere","Koldtvandsmålere"]
[null,"eller",null,"±2 %","±4 %"]
[null,"MDIR 32.41-01*",null,"Varmtvandsmålere","Varmtvandsmålere",null,null,"Maksimalt antal år til næste stikprøve eller udskiftning:",null,null,null,null,null,{"$f":"IF(ISBLANK(D46)=TRUE,\"\",IF(Beregninger!T43=0,\"Ingen forlængelse. Nedtag hurtigst muligt.\",Beregninger!T43))","v":""}]
[null,"MID","Q2 ≤ Q < Q4","±3 %","±6 %",null,null,null,null,null,null,null,null,null,null,null,null,null,null,"Vurderingspunkter i henold til den måletekniske vejledning CLM.VAND.01 Bilag 5:"]
[]
[null,null,null,null,null,null,null,"Præsentation af kontrolresultater fordelt på intervaller (svarende til antal års forlængelse)",null,null,null,null,null,null,null,null,null,null,null,"Målertypens godkendelsesperiode:",null,null,null,null,"Tryk her for forklaring"]
[null,null,null,null,null,null,null,"Hvis mere end ",null,{"$f":"$D$39","v":2},"(godkendelsestallet) målere i stikprøven ender i et interval, kan partiet maksimalt forlænges"]
[null,null,null,null,null,null,null,"med det tilsvarende antal år. Godkendelsestallet er markeret på grafen som en orange linje."]
[]
[]
[]
[null,null,null,null,null,null,null,null,null,null,null,null,null,null,null,null,null,null,null,"Komponentlevetid:",null,null,null,null,"Tryk her for forklaring"]
[null,"Indsæt partistørrelse:",null,200," min. 4 og maks. 3.200 "]
[null,"Stikprøvestørrelse:",null,{"$f":"Beregninger!G3","v":25},"= udtag dette antal målere til stikprøve."]
[null,"Godkendelsestal",null,{"$f":"Beregninger!G4","v":2},"(anvendes i beregninger)"]
[]
[null,"Indsæt kontrolresultater for alle målerne udtaget i stikprøven:"]
[null,null,null,null,null,null,null,null,null,null,null,null,null,null,null,null,null,null,null,"Vandkvalitet:",null,null,null,null,"Tryk her for forklaring"]
[null,"Parti-identifikation:"]
[]
[null,"Nr.:","Måler-identifikation:","Afvigelse punkt 1 [%]:","Afvigelse punkt 2 [%]:","Afvigelse punkt 3 [%]:"]
[{"$f":"ISNUMBER(B46)","v":true},{"$f":"IF($D$38>=ROW(A1),ROW(A1),\"\")","v":1},null,null,null,null,null,"Antal målere registreret i hvert interval (hver måler er kun registreret én gang ud fra det målepunkt med det"]
[{"$f":"ISNUMBER(B47)","v":true},{"$f":"IF($D$38>=ROW(A2),ROW(A2),\"\")","v":2},null,null,null,null,null,"dårligste resultat):"]
[true,3,null,null,null,null,null,null,null,null,null,null,null,null,null,null,null,null,null,"Erfaringsgrundlag for opsætningsområdet:",null,null,null,null,"Tryk her for forklaring"]
[true,4]
[true,5]
[true,6]
[true,7]
[true,8]
[true,9,null,null,null,null,null,null,null,null,null,null,null,null,null,null,null,null,null,"Erfaringsgrundlag for målertypen:",null,null,null,null,"Tryk her for forklaring"]
[true,10]
[true,11]
[true,12]
[true,13]
[true,14]
[true,15]
[true,16,null,null,null,null,null,"Fordeling af målere på intervallerne i de enkelte målepunkter (intervaller er angivet som afrundet til én decimal):"]
[true,17]
[true,18]
[true,19]
[true,20]
[true,21]
[true,22]
[true,23]
[true,24]
[true,25]
[false,""]
[false,""]
[false,""]
[false,""]
[false,""]
[false,""]
[false,""]
[false,""]
[false,""]
[false,""]
[false,""]
[false,""]
[false,""]
[false,""]
[false,""]
[false,""]
[false,""]
[false,""]
[false,""]
[false,""]
[false,""]
[false,""]
[false,""]
[false,""]
[false,""]
[false,""]
[false,""]
[false,""]
[false,""]
[false,""]
[false,""]
[false,""]
[false,""]
[false,""]
[false,""]
[false,""]
[false,""]
[false,""]
[false,""]
[false,""]
[{"$f":"ISNUMBER(B111)","v":false},{"$f":"IF($D$38>=ROW(A66),ROW(A66),\"\")","v":""}]
[false,""]
[false,""]
[false,""]
[false,""]
[false,""]
[false,""]
[false,""]
[false,""]
[false,""]
[false,""]
[false,""]
[false,""]
[false,""]
[false,""]
[false,""]
[false,""]
[false,""]
[false,""]
[false,""]
[false,""]
[false,""]
[false,""]
[false,""]
[false,""]
[false,""]
[false,""]
[false,""]
[false,""]
[false,""]
[false,""]
[false,""]
[false,""]
[false,""]
[false,""]
[false,""]
[false,""]
[false,""]
[false,""]
[false,""]
[false,""]
[false,""]
[false,""]
[false,""]
[false,""]
[false,""]
[false,""]
[false,""]
[false,""]
[false,""]
[false,""]
[false,""]
[false,""]
[false,""]
[false,""]
[false,""]
[false,""]
[false,""]
[false,""]
[false,""]

{"sheet":"Tabel til manuel brug","index":1,"n_rows":136,"n_cols":8,"rows_kept":136,"cut":false,"hidden":false,"merged":[[10,7,13,15],[15,7,18,15],[19,7,21,15],[2,1,2,3],[3,1,3,3],[2,7,3,15],[4,7,9,15]]}
[]
[]
[null,"Partistørrelse",null,null,"Stikprøvestørrelse","Godkendelsestal AQL 4 ",null,"Partiinddeling af målere (afsnit 4 i CLM.VAND.01)\nMålerbestanden inddeles i partier med ensartede karakteristika, således at resultatet fra stikprøvekontrollen kan betragtes som repræsentativt for det parti, som målerne er udtaget fra. "]
[null,"Det samlede antal målere i partiet",null,null,"Antal målere heraf der skal stikprøve-kontrolleres","Det højeste antal målere i stikprøven som må overskride kontrolgrænsen"]
[null,4,"-",15,3,0,null,"Målerne skal som minimum:\n– have samme måleprincip f.eks. vingehjulsmålere, magnetisk induktive målere eller ultralydsmålere,\n– være af samme type, fabrikat og størrelse, og\n– være opsat inden for en periode på maksimalt 2 år.\n"]
[null,16,"-",{"$f":"B7-1","v":20},4,0]
[null,21,"-",{"$f":"B8-1","v":25},5,0]
[null,26,"-",33,6,0]
[null,34,"-",41,7,0]
[null,42,"-",49,8,0]
[null,50,"-",50,8,1,null,"Målerne i et parti skal desuden have nogenlunde ens driftsbetingelser. Hvis en instrumentejer har meget forskellige driftsbetingelser forskellige steder i nettet, er det derfor vigtigt, at instrumentejeren danner partier af målere, så der inden for det enkelte parti undgås forskellige driftsbetingelser.\n"]
[null,51,"-",58,9,1]
[null,59,"-",66,10,1]
[null,67,"-",74,11,1]
[null,75,"-",82,12,1]
[null,83,"-",90,13,1]
[null,91,"-",98,14,1]
[null,99,"-",107,15,1]
[null,108,"-",115,16,1]
[null,116,"-",124,17,1]
[null,125,"-",132,18,1]
[null,133,"-",141,19,1]
[null,142,"-",149,20,1]
[null,150,"-",150,20,2]
[null,151,"-",160,21,2]
[null,161,"-",171,22,2]
[null,172,"-",182,23,2]
[null,183,"-",193,24,2]
[null,194,"-",204,25,2]
[null,205,"-",215,26,2]
[null,216,"-",225,27,2]
[null,226,"-",236,28,2]
[null,237,"-",247,29,2]
[null,248,"-",258,30,2]
[null,259,"-",269,31,2]
[null,270,"-",279,32,2]
[null,280,"-",280,32,3]
[null,281,"-",292,33,3]
[null,293,"-",304,34,3]
[null,305,"-",316,35,3]
[null,317,"-",328,36,3]
[null,329,"-",341,37,3]
[null,342,"-",353,38,3]
[null,354,"-",365,39,3]
[null,366,"-",377,40,3]
[null,378,"-",389,41,3]
[null,390,"-",390,41,4]
[null,391,"-",402,42,4]
[null,403,"-",414,43,4]
[null,415,"-",426,44,4]
[null,427,"-",438,45,4]
[null,439,"-",451,46,4]
[null,452,"-",463,47,4]
[null,464,"-",475,48,4]
[null,476,"-",487,49,4]
[null,488,"-",499,50,4]
[null,500,"-",500,50,5]
[null,501,"-",523,51,5]
[null,524,"-",546,52,5]
[null,547,"-",570,53,5]
[null,571,"-",593,54,5]
[null,594,"-",616,55,5]
[null,617,"-",640,56,5]
[null,641,"-",663,57,5]
[null,664,"-",686,58,5]
[null,687,"-",710,59,5]
[null,711,"-",733,60,5]
[null,734,"-",756,61,5]
[null,757,"-",780,62,5]
[null,781,"-",803,63,5]
[null,804,"-",{"$f":"B72-1","v":826},64,5]
[null,827,"-",849,65,5]
[null,850,"-",850,65,6]
[null,851,"-",873,66,6]
[null,874,"-",896,67,6]
[null,897,"-",920,68,6]
[null,921,"-",943,69,6]
[null,944,"-",966,70,6]
[null,967,"-",990,71,6]
[null,991,"-",1013,72,6]
[null,1014,"-",1036,73,6]
[null,1037,"-",1060,74,6]
[null,1061,"-",1083,75,6]
[null,1084,"-",1106,76,6]
[null,1107,"-",1130,77,6]
[null,1131,"-",1153,78,6]
[null,1154,"-",1176,79,6]
[null,1177,"-",1199,80,6]
[null,1200,"-",1200,80,7]
[null,1201,"-",1244,81,7]
[null,1245,"-",1288,82,7]
[null,1289,"-",1333,83,7]
[null,1334,"-",1377,84,7]
[null,1378,"-",1422,85,7]
[null,1423,"-",1466,86,7]
[null,1467,"-",1511,87,7]
[null,1512,"-",1555,88,7]
[null,1556,"-",1600,89,7]
[null,1601,"-",1644,90,7]
[null,1645,"-",1688,91,7]
[null,1689,"-",1733,92,7]
[null,1734,"-",1777,93,7]
[null,1778,"-",1822,94,7]
[null,1823,"-",1866,95,7]
[null,1867,"-",1911,96,8]
[null,1912,"-",1955,97,8]
[null,1956,"-",2000,98,8]
[null,2001,"-",2044,99,8]
[null,2045,"-",2088,100,8]
[null,2089,"-",2133,101,8]
[null,2134,"-",2177,102,8]
[null,2178,"-",2199,103,8]
[null,2200,"-",2222,103,8]
[null,2223,"-",2266,104,8]
[null,2267,"-",2311,105,8]
[null,2312,"-",2355,106,8]
[null,2356,"-",2400,107,8]
[null,2401,"-",2444,108,8]
[null,2445,"-",2488,109,8]
[null,2489,"-",2533,110,8]
[null,2534,"-",2577,111,9]
[null,2578,"-",2622,112,9]
[null,2623,"-",2666,113,9]
[null,2667,"-",2711,114,9]
[null,2712,"-",2755,115,9]
[null,2756,"-",2800,116,9]
[null,2801,"-",2844,117,9]
[null,2845,"-",2888,118,9]
[null,2889,"-",2933,119,9]
[null,2934,"-",2977,120,9]
[null,2978,"-",3022,121,9]
[null,3023,"-",3066,122,9]
[null,3067,"-",3111,123,9]
[null,3112,"-",3155,124,9]
[null,3156,"-",{"$f":"B136-1","v":3199},125,9]
[null,3200,"-",3200,125,10]

{"sheet":"Metode","index":2,"n_rows":61,"n_cols":2,"rows_kept":61,"cut":false,"hidden":false,"merged":[[56,1,56,13],[58,1,58,13],[60,1,61,13],[43,1,46,12],[48,1,49,12]]}
[]
[null,"Beskrivelse af metoden i værktøjet"]
[null,"Anbefalingen af maks antal år til næste stikprøve/udskiftning laves ud fra, hvordan målernes afvigelser fordeler sig i 10 intervaller "]
[null,"for hvert af de to målepunkter, som er angivet i vejlendingen CLM.VAND.01 i bilag 3."]
[null,"Metoden er grundlæggende den samme som beskrevet i vejledningen CLM.VAND.01, men med 9 kontrolgrænser i stedet for 3."]
[null,"Første interval går fra 0 % afvigelse til verifikationsfejlgrænsen, som er til og med 2 %. "]
[null,"Området mellem verifikationsfejlgrænsen og brugstolerancen på 4 % er opdelt i 8 lige store intervaller."]
[null,"For hvert interval afvigelsen stiger fra verifikationsfejlgrænsen mod brugstolerancen, falder anbefalingen til maks. antal år."]
[null,"Afvigelserne kan både være positive og negative, men i vurderingen behandles de som absolutte værdier, hvorfor der ikke er "]
[null,"intervaller for negative afvigelser."]
[]
[]
[]
[]
[]
[]
[]
[]
[]
[]
[]
[]
[]
[]
[]
[]
[]
[]
[]
[]
[]
[]
[]
[null,"Som det fremgår af intervalindelingerne for de to målepunkter, dækker hvert interval-nummer over to forskellige intervaller "]
[null,"nemlig ét for hvert af de to målepunkter. Ved en afvigelse på 2,8 % i målepunkt 1, ender måleren i interval 5. En afvigelse på"]
[null,"3,6 % i målepunkt 2 betyder derimod, at måleren ender i interval 2. "]
[null,"Vurderingen af stikprøvet laves ud fra summen af målere, der ender i hvert interval-nummer på tværs af de to målepunkter."]
[null,"Hver måler tæller altså med i vurderingen med den afvigelse, som giver det laveste interval-nummer af de to målepunkter. "]
[null,"Hver måler tæller kun med én gang. Hvis måleren f.eks. ender i interval nummer 4 i begge målepunkter, tæller måleren"]
[null,"kun som én måler i interval 4 og ikke som to."]
[]
[null,"Vurderingen af, hvilket interval hele målerpartiet ender i, laves ud fra et godkendelsestal, der afhænger af partiets størrelse."]
[]
[null,"Godkendelsestallet er udtryk for en statistisk vurdering af partiet som helhed ud fra stikprøven og er fastsat efter metoden i standarden DS/ISO 2859-1+Cor. 1: 2001 ”Metoder for stikprøveinspektion ved alternativ variation – Del 1\". Der er anvendt normal inspektion, inspektionsniveau II og AQL = 4 %. Godkendelsestallet angiver det maksimale antal målere, der ved stikprøvekontrollen må overskride nøjagtighedskravene. "]
[]
[]
[]
[]
[null,"Partiet ender i intervallet med laveste interval-nummer, hvor der er mere end \"godkendelsestallet\" målere."]
[]
[null,"Hvis mere end \"godkendelsestallet\" målere overskrider brugstolerancen (ender i interval nummer 0), skal partiet udskiftes "]
[null,"hurtigst muligt."]
[]
[null,"Eksempel"]
[null,"Ved et parti på 200 målere, skal der laves en stikprøve på 25 målere, og godkendelsestallet er 2."]
[]
[null,"Hvis der er 0, 1, eller 2 målere, som ender i et interval (overskrider grænsen til intervallet i mindst ét af de to målepunkter), har det ikke betydning, da der iht. godkendelsestallet må der være op til og med 2 målere i stikprøven, som overskrider en kontrolgrænse."]
[]
[null,"Hvis der derimod er 3 målere som ender i f.eks. interval 4 bliver anbefaligen maksimalt 4 år, da mere end 2 målere overskrider grænsen til interval 4 i mindst ét af de to målepunkter. "]
[]
[null,"Hvis mere end 2 målere i dette eksempel ender i interval 0 (overskrider mindst én af brugstolerancerne på 4 % i de to målepunkter, skal partiet udskiftes hurtigst muligt."]

{"sheet":"Beregninger","index":3,"n_rows":171,"n_cols":29,"rows_kept":171,"cut":false,"hidden":false,"merged":[[5,2,5,4],[6,2,6,4]]}
[]
[null,null,null,null,null,"Partistørrelse",{"$f":"Stikprøve!D37","v":200}]
[null,null,null,null,null,"Stikprøvestørrelse",{"$f":"VLOOKUP(\"Ja\",A8:F139,6,FALSE)","v":25}]
[null,null,null,null,null,"Godkendelsestal",{"$f":"VLOOKUP(\"Ja\",A8:H139,8,FALSE)","v":2}]
[]
[null,null,"Partistørrelse",null,null,"Stikprøvestørrelse",null,"Godkendelsestal AQL 4 "]
[null,null,"Det samlede antal målere i partiet",null,null,"Antal målere heraf der skal stikprøve-kontrolleres",null,"Det højeste antal målere i stikprøven som må overskride kontrolgrænsen"]
[{"$f":"IF(AND($G$2>(C8-1),$G$2<(E8+1)),\"Ja\",\"Nej\")","v":"Nej"},null,4,"-",15,3,null,0]
["Nej",null,16,"-",{"$f":"C10-1","v":20},4,null,0]
["Nej",null,21,"-",{"$f":"C11-1","v":25},5,null,0]
["Nej",null,26,"-",33,6,null,0]
["Nej",null,34,"-",41,7,null,0]
["Nej",null,42,"-",49,8,null,0,null,"Intervalgrænser (afvigelser i %) for de to målepunkter:"]
["Nej",null,50,"-",50,8,null,1]
["Nej",null,51,"-",58,9,null,1,null,"Max. Antal År",9,8,7,6,5,4,3,2,1,0]
["Nej",null,59,"-",66,10,null,1,null,"Målepunkt 1",null,2,{"$f":"L16+2/8","v":2.25},{"$f":"M16+2/8","v":2.5},2.75,3,3.25,3.5,3.75,{"$f":"S16+2/8","v":4}]
["Nej",null,67,"-",74,11,null,1,null,"Målepunkt 2",null,2,{"$f":"L17+2/8","v":2.25},{"$f":"M17+2/8","v":2.5},2.75,3,3.25,3.5,3.75,{"$f":"S17+2/8","v":4}]
["Nej",null,75,"-",82,12,null,1,null,"Målepunkt 3",null,2,{"$f":"L18+2/8","v":2.25},{"$f":"M18+2/8","v":2.5},2.75,3,3.25,3.5,3.75,{"$f":"S18+2/8","v":4}]
["Nej",null,83,"-",90,13,null,1]
["Nej",null,91,"-",98,14,null,1]
["Nej",null,99,"-",107,15,null,1]
["Nej",null,108,"-",115,16,null,1,null,"Optælling af målere til grafer:"]
["Nej",null,116,"-",124,17,null,1]
["Nej",null,125,"-",132,18,null,1,null,"Målere der overkrider de forskellige grænser"]
["Nej",null,133,"-",141,19,null,1,null,"Målepunkt 1",null,{"$f":"COUNTIF($J$47:INDIRECT(ADDRESS(46+$G$3,10,1,,\"Beregninger\")),\">\"&Beregninger!L16)","v":0},{"$f":"COUNTIF($J$47:INDIRECT(ADDRESS(46+$G$3,10,1,,\"Beregninger\")),\">\"&Beregninger!M16)","v":0},{"$f":"COUNTIF($J$47:INDIRECT(ADDRESS(46+$G$3,10,1,,\"Beregninger\")),\">\"&Beregninger!N16)","v":0},{"$f":"COUNTIF($J$47:INDIRECT(ADDRESS(46+$G$3,10,1,,\"Beregninger\")),\">\"&Beregninger!O16)","v":0},{"$f":"COUNTIF($J$47:INDIRECT(ADDRESS(46+$G$3,10,1,,\"Beregninger\")),\">\"&Beregninger!P16)","v":0},{"$f":"COUNTIF($J$47:INDIRECT(ADDRESS(46+$G$3,10,1,,\"Beregninger\")),\">\"&Beregninger!Q16)","v":0},{"$f":"COUNTIF($J$47:INDIRECT(ADDRESS(46+$G$3,10,1,,\"Beregninger\")),\">\"&Beregninger!R16)","v":0},{"$f":"COUNTIF($J$47:INDIRECT(ADDRESS(46+$G$3,10,1,,\"Beregninger\")),\">\"&Beregninger!S16)","v":0},{"$f":"COUNTIF($J$47:INDIRECT(ADDRESS(46+$G$3,10,1,,\"Beregninger\")),\">\"&Beregninger!T16)","v":0}]
["Nej",null,142,"-",149,20,null,1,null,"Målepunkt 2",null,{"$f":"COUNTIF($M$47:INDIRECT(ADDRESS(46+$G$3,13,1,,\"Beregninger\")),\">\"&Beregninger!L17)","v":0},{"$f":"COUNTIF($M$47:INDIRECT(ADDRESS(46+$G$3,13,1,,\"Beregninger\")),\">\"&Beregninger!M17)","v":0},{"$f":"COUNTIF($M$47:INDIRECT(ADDRESS(46+$G$3,13,1,,\"Beregninger\")),\">\"&Beregninger!N17)","v":0},{"$f":"COUNTIF($M$47:INDIRECT(ADDRESS(46+$G$3,13,1,,\"Beregninger\")),\">\"&Beregninger!O17)","v":0},{"$f":"COUNTIF($M$47:INDIRECT(ADDRESS(46+$G$3,13,1,,\"Beregninger\")),\">\"&Beregninger!P17)","v":0},{"$f":"COUNTIF($M$47:INDIRECT(ADDRESS(46+$G$3,13,1,,\"Beregninger\")),\">\"&Beregninger!Q17)","v":0},{"$f":"COUNTIF($M$47:INDIRECT(ADDRESS(46+$G$3,13,1,,\"Beregninger\")),\">\"&Beregninger!R17)","v":0},{"$f":"COUNTIF($M$47:INDIRECT(ADDRESS(46+$G$3,13,1,,\"Beregninger\")),\">\"&Beregninger!S17)","v":0},{"$f":"COUNTIF($M$47:INDIRECT(ADDRESS(46+$G$3,13,1,,\"Beregninger\")),\">\"&Beregninger!T17)","v":0}]
["Nej",null,150,"-",150,20,null,2,null,"Målepunkt 3",null,{"$f":"COUNTIF($P$47:INDIRECT(ADDRESS(46+$G$3,16,1,,\"Beregninger\")),\">\"&Beregninger!L18)","v":0},{"$f":"COUNTIF($P$47:INDIRECT(ADDRESS(46+$G$3,16,1,,\"Beregninger\")),\">\"&Beregninger!M18)","v":0},{"$f":"COUNTIF($P$47:INDIRECT(ADDRESS(46+$G$3,16,1,,\"Beregninger\")),\">\"&Beregninger!N18)","v":0},{"$f":"COUNTIF($P$47:INDIRECT(ADDRESS(46+$G$3,16,1,,\"Beregninger\")),\">\"&Beregninger!O18)","v":0},{"$f":"COUNTIF($P$47:INDIRECT(ADDRESS(46+$G$3,16,1,,\"Beregninger\")),\">\"&Beregninger!P18)","v":0},{"$f":"COUNTIF($P$47:INDIRECT(ADDRESS(46+$G$3,16,1,,\"Beregninger\")),\">\"&Beregninger!Q18)","v":0},{"$f":"COUNTIF($P$47:INDIRECT(ADDRESS(46+$G$3,16,1,,\"Beregninger\")),\">\"&Beregninger!R18)","v":0},{"$f":"COUNTIF($P$47:INDIRECT(ADDRESS(46+$G$3,16,1,,\"Beregninger\")),\">\"&Beregninger!S18)","v":0},{"$f":"COUNTIF($P$47:INDIRECT(ADDRESS(46+$G$3,16,1,,\"Beregninger\")),\">\"&Beregninger!T18)","v":0}]
["Nej",null,151,"-",160,21,null,2]
["Nej",null,161,"-",171,22,null,2,null,"Målere fordelt i intervaller til grafer"]
["Nej",null,172,"-",182,23,null,2,null,null,null,"≤2,00",">2,00-2,25",">2,25-2,50",">2,50-2,75",">2,75-3,00",">3,00-3,25",">3,25-3,50",">3,50-3,75",">3,75-4,00",">4,00"]
["Nej",null,183,"-",193,24,null,2,null,"Målepunkt 1",null,{"$f":"COUNTIF($J$47:INDIRECT(ADDRESS(46+$G$3,10,1,,\"Beregninger\")),\"<=\"&Beregninger!L16)","v":25},{"$f":"L25-M25","v":0},0,0,0,0,0,0,0,{"$f":"T25","v":0}]
["Ja",null,194,"-",204,25,null,2,null,null,null,"≤2,00",">2,00-2,25",">2,25-2,50",">2,50-2,75",">2,75-3,00",">3,00-3,25",">3,25-3,50",">3,50-3,75",">3,75-4,00",">4,00"]
["Nej",null,205,"-",215,26,null,2,null,"Målepunkt 2",null,{"$f":"COUNTIF($M$47:INDIRECT(ADDRESS(46+$G$3,13,1,,\"Beregninger\")),\"<=\"&Beregninger!L17)","v":25},{"$f":"L26-M26","v":0},0,0,0,0,{"$f":"Q26-R26","v":0},0,0,{"$f":"T26","v":0}]
["Nej",null,216,"-",225,27,null,2,null,null,null,"≤2,00",">2,00-2,25",">2,25-2,50",">2,50-2,75",">2,75-3,00",">3,00-3,25",">3,25-3,50",">3,50-3,75",">3,75-4,00",">4,00"]
["Nej",null,226,"-",236,28,null,2,null,"Målepunkt 3",null,{"$f":"COUNTIF($P$47:INDIRECT(ADDRESS(46+$G$3,16,1,,\"Beregninger\")),\"<=\"&Beregninger!L18)","v":25},{"$f":"L27-M27","v":0},0,0,0,0,0,0,0,{"$f":"T27","v":0}]
["Nej",null,237,"-",247,29,null,2]
["Nej",null,248,"-",258,30,null,2]
["Nej",null,259,"-",269,31,null,2]
["Nej",null,270,"-",279,32,null,2]
[{"$f":"IF(AND($G$2>(C40-1),$G$2<(E40+1)),\"Ja\",\"Nej\")","v":"Nej"},null,280,"-",280,32,null,3,null,null,null,null,null,null,null,null,null,null,"Afvigere i interval til graf:",{"$f":"G3-SUM(U40:AC40)","v":25},{"$f":"U45-V45","v":0},{"$f":"V45-W45","v":0},{"$f":"W45-X45","v":0},0,0,0,0,{"$f":"AB45-AC45","v":0},{"$f":"AC45","v":0}]
["Nej",null,281,"-",292,33,null,3]
["Nej",null,293,"-",304,34,null,3,null,null,null,null,null,null,null,null,null,null,"Optælling af målere i de forskellige intervaller ift. forlængelse (sum af de to målepunkter):"]
["Nej",null,305,"-",316,35,null,3,null,null,null,null,null,null,null,null,null,null,"Maks antal år:",{"$f":"MIN(T44:AC44)","v":9}]
["Nej",null,317,"-",328,36,null,3,null,null,null,null,null,null,null,null,null,null,"År iht. afvigere:",9,{"$f":"IF(U45>$G$4,U46,9)","v":9},9,9,9,{"$f":"IF(Y45>$G$4,Y46,9)","v":9},9,{"$f":"IF(AA45>$G$4,AA46,9)","v":9},{"$f":"IF(AB45>$G$4,AB46,9)","v":9},{"$f":"IF(AC45>$G$4,AC46,9)","v":9}]
["Nej",null,329,"-",341,37,null,3,null,"Absolutte værdier af indtastede afvigelser:",null,null,null,null,null,null,null,null,"Antal over grænse:",{"$f":"G3","v":25},{"$f":"SUM($U$47:INDIRECT(ADDRESS(46+$G$3,21,1,,\"Beregninger\")))","v":0},{"$f":"SUM($V$47:INDIRECT(ADDRESS(46+$G$3,22,1,,\"Beregninger\")))","v":0},{"$f":"SUM($W$47:INDIRECT(ADDRESS(46+$G$3,23,1,,\"Beregninger\")))","v":0},{"$f":"SUM($X$47:INDIRECT(ADDRESS(46+$G$3,24,1,,\"Beregninger\")))","v":0},{"$f":"SUM($Y$47:INDIRECT(ADDRESS(46+$G$3,25,1,,\"Beregninger\")))","v":0},{"$f":"SUM($Z$47:INDIRECT(ADDRESS(46+$G$3,26,1,,\"Beregninger\")))","v":0},{"$f":"SUM($AA$47:INDIRECT(ADDRESS(46+$G$3,27,1,,\"Beregninger\")))","v":0},{"$f":"SUM($AB$47:INDIRECT(ADDRESS(46+$G$3,28,1,,\"Beregninger\")))","v":0},{"$f":"SUM($AC$47:INDIRECT(ADDRESS(46+$G$3,29,1,,\"Beregninger\")))","v":0}]
["Nej",null,342,"-",353,38,null,3,null,"Afvigelse punkt 1 [%]:",null,null,"Afvigelse punkt 2 [%]:",null,null,"Afvigelse punkt 3 [%]:",null,null,"År:",9,8,7,6,5,4,3,2,1,0]
["Nej",null,354,"-",365,39,null,3,null,{"$f":"IF(ISBLANK(Stikprøve!D46)=TRUE,0,ABS(Stikprøve!D46))","v":0},null,null,{"$f":"IF(ISBLANK(Stikprøve!E46)=TRUE,0,ABS(Stikprøve!E46))","v":0},null,null,{"$f":"IF(ISBLANK(Stikprøve!F46)=TRUE,0,ABS(Stikprøve!F46))","v":0},null,null,null,null,{"$f":"IF($J47>L$16,1,IF($M47>L$17,1,IF($P47>L$18,1,\"\")))","v":""},{"$f":"IF($J47>M$16,1,IF($M47>M$17,1,IF($P47>M$18,1,\"\")))","v":""},"","","","","","",""]
["Nej",null,366,"-",377,40,null,3,null,{"$f":"IF(ISBLANK(Stikprøve!D47)=TRUE,0,ABS(Stikprøve!D47))","v":0},null,null,{"$f":"IF(ISBLANK(Stikprøve!E47)=TRUE,0,ABS(Stikprøve!E47))","v":0},null,null,{"$f":"IF(ISBLANK(Stikprøve!F47)=TRUE,0,ABS(Stikprøve!F47))","v":0},null,null,null,null,{"$f":"IF($J48>L$16,1,IF($M48>L$17,1,IF($P48>L$18,1,\"\")))","v":""},{"$f":"IF($J48>M$16,1,IF($M48>M$17,1,IF($P48>M$18,1,\"\")))","v":""},{"$f":"IF($J48>N$16,1,IF($M48>N$17,1,IF($P48>N$18,1,\"\")))","v":""},{"$f":"IF($J48>O$16,1,IF($M48>O$17,1,IF($P48>O$18,1,\"\")))","v":""},{"$f":"IF($J48>P$16,1,IF($M48>P$17,1,IF($P48>P$18,1,\"\")))","v":""},{"$f":"IF($J48>Q$16,1,IF($M48>Q$17,1,IF($P48>Q$18,1,\"\")))","v":""},{"$f":"IF($J48>R$16,1,IF($M48>R$17,1,IF($P48>R$18,1,\"\")))","v":""},{"$f":"IF($J48>S$16,1,IF($M48>S$17,1,IF($P48>S$18,1,\"\")))","v":""},{"$f":"IF($J48>T$16,1,IF($M48>T$17,1,IF($P48>T$18,1,\"\")))","v":""}]
["Nej",null,378,"-",389,41,null,3,null,{"$f":"IF(ISBLANK(Stikprøve!D48)=TRUE,0,ABS(Stikprøve!D48))","v":0},null,null,{"$f":"IF(ISBLANK(Stikprøve!E48)=TRUE,0,ABS(Stikprøve!E48))","v":0},null,null,{"$f":"IF(ISBLANK(Stikprøve!F48)=TRUE,0,ABS(Stikprøve!F48))","v":0},null,null,null,null,"","","","","","","","",""]
["Nej",null,390,"-",390,41,null,4,null,{"$f":"IF(ISBLANK(Stikprøve!D49)=TRUE,0,ABS(Stikprøve!D49))","v":0},null,null,{"$f":"IF(ISBLANK(Stikprøve!E49)=TRUE,0,ABS(Stikprøve!E49))","v":0},null,null,{"$f":"IF(ISBLANK(Stikprøve!F49)=TRUE,0,ABS(Stikprøve!F49))","v":0},null,null,null,null,"","","","","","","","",""]
["Nej",null,391,"-",402,42,null,4,null,{"$f":"IF(ISBLANK(Stikprøve!D50)=TRUE,0,ABS(Stikprøve!D50))","v":0},null,null,{"$f":"IF(ISBLANK(Stikprøve!E50)=TRUE,0,ABS(Stikprøve!E50))","v":0},null,null,{"$f":"IF(ISBLANK(Stikprøve!F50)=TRUE,0,ABS(Stikprøve!F50))","v":0},null,null,null,null,"","","","","","","","",""]
["Nej",null,403,"-",414,43,null,4,null,{"$f":"IF(ISBLANK(Stikprøve!D51)=TRUE,0,ABS(Stikprøve!D51))","v":0},null,null,{"$f":"IF(ISBLANK(Stikprøve!E51)=TRUE,0,ABS(Stikprøve!E51))","v":0},null,null,{"$f":"IF(ISBLANK(Stikprøve!F51)=TRUE,0,ABS(Stikprøve!F51))","v":0},null,null,null,null,"","","","","","","","",""]
["Nej",null,415,"-",426,44,null,4,null,{"$f":"IF(ISBLANK(Stikprøve!D52)=TRUE,0,ABS(Stikprøve!D52))","v":0},null,null,{"$f":"IF(ISBLANK(Stikprøve!E52)=TRUE,0,ABS(Stikprøve!E52))","v":0},null,null,{"$f":"IF(ISBLANK(Stikprøve!F52)=TRUE,0,ABS(Stikprøve!F52))","v":0},null,null,null,null,"","","","","","","","",""]
["Nej",null,427,"-",438,45,null,4,null,{"$f":"IF(ISBLANK(Stikprøve!D53)=TRUE,0,ABS(Stikprøve!D53))","v":0},null,null,{"$f":"IF(ISBLANK(Stikprøve!E53)=TRUE,0,ABS(Stikprøve!E53))","v":0},null,null,{"$f":"IF(ISBLANK(Stikprøve!F53)=TRUE,0,ABS(Stikprøve!F53))","v":0},null,null,null,null,"","","","","","","","",""]
["Nej",null,439,"-",451,46,null,4,null,{"$f":"IF(ISBLANK(Stikprøve!D54)=TRUE,0,ABS(Stikprøve!D54))","v":0},null,null,{"$f":"IF(ISBLANK(Stikprøve!E54)=TRUE,0,ABS(Stikprøve!E54))","v":0},null,null,{"$f":"IF(ISBLANK(Stikprøve!F54)=TRUE,0,ABS(Stikprøve!F54))","v":0},null,null,null,null,"","","","","","","","",""]
["Nej",null,452,"-",463,47,null,4,null,{"$f":"IF(ISBLANK(Stikprøve!D55)=TRUE,0,ABS(Stikprøve!D55))","v":0},null,null,{"$f":"IF(ISBLANK(Stikprøve!E55)=TRUE,0,ABS(Stikprøve!E55))","v":0},null,null,{"$f":"IF(ISBLANK(Stikprøve!F55)=TRUE,0,ABS(Stikprøve!F55))","v":0},null,null,null,null,"","","","","","","","",""]
["Nej",null,464,"-",475,48,null,4,null,{"$f":"IF(ISBLANK(Stikprøve!D56)=TRUE,0,ABS(Stikprøve!D56))","v":0},null,null,{"$f":"IF(ISBLANK(Stikprøve!E56)=TRUE,0,ABS(Stikprøve!E56))","v":0},null,null,{"$f":"IF(ISBLANK(Stikprøve!F56)=TRUE,0,ABS(Stikprøve!F56))","v":0},null,null,null,null,"","","","","","","","",""]
["Nej",null,476,"-",487,49,null,4,null,{"$f":"IF(ISBLANK(Stikprøve!D57)=TRUE,0,ABS(Stikprøve!D57))","v":0},null,null,{"$f":"IF(ISBLANK(Stikprøve!E57)=TRUE,0,ABS(Stikprøve!E57))","v":0},null,null,{"$f":"IF(ISBLANK(Stikprøve!F57)=TRUE,0,ABS(Stikprøve!F57))","v":0},null,null,null,null,"","","","","","","","",""]
["Nej",null,488,"-",499,50,null,4,null,{"$f":"IF(ISBLANK(Stikprøve!D58)=TRUE,0,ABS(Stikprøve!D58))","v":0},null,null,{"$f":"IF(ISBLANK(Stikprøve!E58)=TRUE,0,ABS(Stikprøve!E58))","v":0},null,null,{"$f":"IF(ISBLANK(Stikprøve!F58)=TRUE,0,ABS(Stikprøve!F58))","v":0},null,null,null,null,"","","","","","","","",""]
["Nej",null,500,"-",500,50,null,5,null,{"$f":"IF(ISBLANK(Stikprøve!D59)=TRUE,0,ABS(Stikprøve!D59))","v":0},null,null,{"$f":"IF(ISBLANK(Stikprøve!E59)=TRUE,0,ABS(Stikprøve!E59))","v":0},null,null,{"$f":"IF(ISBLANK(Stikprøve!F59)=TRUE,0,ABS(Stikprøve!F59))","v":0},null,null,null,null,"","","","","","","","",""]
["Nej",null,501,"-",523,51,null,5,null,{"$f":"IF(ISBLANK(Stikprøve!D60)=TRUE,0,ABS(Stikprøve!D60))","v":0},null,null,{"$f":"IF(ISBLANK(Stikprøve!E60)=TRUE,0,ABS(Stikprøve!E60))","v":0},null,null,{"$f":"IF(ISBLANK(Stikprøve!F60)=TRUE,0,ABS(Stikprøve!F60))","v":0},null,null,null,null,"","","","","","","","",""]
["Nej",null,524,"-",546,52,null,5,null,{"$f":"IF(ISBLANK(Stikprøve!D61)=TRUE,0,ABS(Stikprøve!D61))","v":0},null,null,{"$f":"IF(ISBLANK(Stikprøve!E61)=TRUE,0,ABS(Stikprøve!E61))","v":0},null,null,{"$f":"IF(ISBLANK(Stikprøve!F61)=TRUE,0,ABS(Stikprøve!F61))","v":0},null,null,null,null,"","","","","","","","",""]
["Nej",null,547,"-",570,53,null,5,null,{"$f":"IF(ISBLANK(Stikprøve!D62)=TRUE,0,ABS(Stikprøve!D62))","v":0},null,null,{"$f":"IF(ISBLANK(Stikprøve!E62)=TRUE,0,ABS(Stikprøve!E62))","v":0},null,null,{"$f":"IF(ISBLANK(Stikprøve!F62)=TRUE,0,ABS(Stikprøve!F62))","v":0},null,null,null,null,"","","","","","","","",""]
["Nej",null,571,"-",593,54,null,5,null,{"$f":"IF(ISBLANK(Stikprøve!D63)=TRUE,0,ABS(Stikprøve!D63))","v":0},null,null,{"$f":"IF(ISBLANK(Stikprøve!E63)=TRUE,0,ABS(Stikprøve!E63))","v":0},null,null,{"$f":"IF(ISBLANK(Stikprøve!F63)=TRUE,0,ABS(Stikprøve!F63))","v":0},null,null,null,null,"","","","","","","","",""]
["Nej",null,594,"-",616,55,null,5,null,{"$f":"IF(ISBLANK(Stikprøve!D64)=TRUE,0,ABS(Stikprøve!D64))","v":0},null,null,{"$f":"IF(ISBLANK(Stikprøve!E64)=TRUE,0,ABS(Stikprøve!E64))","v":0},null,null,{"$f":"IF(ISBLANK(Stikprøve!F64)=TRUE,0,ABS(Stikprøve!F64))","v":0},null,null,null,null,"","","","","","","","",""]
["Nej",null,617,"-",640,56,null,5,null,{"$f":"IF(ISBLANK(Stikprøve!D65)=TRUE,0,ABS(Stikprøve!D65))","v":0},null,null,{"$f":"IF(ISBLANK(Stikprøve!E65)=TRUE,0,ABS(Stikprøve!E65))","v":0},null,null,{"$f":"IF(ISBLANK(Stikprøve!F65)=TRUE,0,ABS(Stikprøve!F65))","v":0},null,null,null,null,"","","","","","","","",""]
["Nej",null,641,"-",663,57,null,5,null,{"$f":"IF(ISBLANK(Stikprøve!D66)=TRUE,0,ABS(Stikprøve!D66))","v":0},null,null,{"$f":"IF(ISBLANK(Stikprøve!E66)=TRUE,0,ABS(Stikprøve!E66))","v":0},null,null,{"$f":"IF(ISBLANK(Stikprøve!F66)=TRUE,0,ABS(Stikprøve!F66))","v":0},null,null,null,null,"","","","","","","","",""]
["Nej",null,664,"-",686,58,null,5,null,{"$f":"IF(ISBLANK(Stikprøve!D67)=TRUE,0,ABS(Stikprøve!D67))","v":0},null,null,{"$f":"IF(ISBLANK(Stikprøve!E67)=TRUE,0,ABS(Stikprøve!E67))","v":0},null,null,{"$f":"IF(ISBLANK(Stikprøve!F67)=TRUE,0,ABS(Stikprøve!F67))","v":0},null,null,null,null,"","","","","","","","",""]
["Nej",null,687,"-",710,59,null,5,null,{"$f":"IF(ISBLANK(Stikprøve!D68)=TRUE,0,ABS(Stikprøve!D68))","v":0},null,null,{"$f":"IF(ISBLANK(Stikprøve!E68)=TRUE,0,ABS(Stikprøve!E68))","v":0},null,null,{"$f":"IF(ISBLANK(Stikprøve!F68)=TRUE,0,ABS(Stikprøve!F68))","v":0},null,null,null,null,"","","","","","","","",""]
["Nej",null,711,"-",733,60,null,5,null,{"$f":"IF(ISBLANK(Stikprøve!D69)=TRUE,0,ABS(Stikprøve!D69))","v":0},null,null,{"$f":"IF(ISBLANK(Stikprøve!E69)=TRUE,0,ABS(Stikprøve!E69))","v":0},null,null,{"$f":"IF(ISBLANK(Stikprøve!F69)=TRUE,0,ABS(Stikprøve!F69))","v":0},null,null,null,null,"","","","","","","","",""]
["Nej",null,734,"-",756,61,null,5,null,{"$f":"IF(ISBLANK(Stikprøve!D70)=TRUE,0,ABS(Stikprøve!D70))","v":0},null,null,{"$f":"IF(ISBLANK(Stikprøve!E70)=TRUE,0,ABS(Stikprøve!E70))","v":0},null,null,{"$f":"IF(ISBLANK(Stikprøve!F70)=TRUE,0,ABS(Stikprøve!F70))","v":0},null,null,null,null,"","","","","","","","",""]
[{"$f":"IF(AND($G$2>(C72-1),$G$2<(E72+1)),\"Ja\",\"Nej\")","v":"Nej"},null,757,"-",780,62,null,5,null,{"$f":"IF(ISBLANK(Stikprøve!D71)=TRUE,0,ABS(Stikprøve!D71))","v":0},null,null,{"$f":"IF(ISBLANK(Stikprøve!E71)=TRUE,0,ABS(Stikprøve!E71))","v":0},null,null,{"$f":"IF(ISBLANK(Stikprøve!F71)=TRUE,0,ABS(Stikprøve!F71))","v":0},null,null,null,null,"","","","","","","","",""]
["Nej",null,781,"-",803,63,null,5,null,{"$f":"IF(ISBLANK(Stikprøve!D72)=TRUE,0,ABS(Stikprøve!D72))","v":0},null,null,{"$f":"IF(ISBLANK(Stikprøve!E72)=TRUE,0,ABS(Stikprøve!E72))","v":0},null,null,{"$f":"IF(ISBLANK(Stikprøve!F72)=TRUE,0,ABS(Stikprøve!F72))","v":0},null,null,null,null,"","","","","","","","",""]
["Nej",null,804,"-",{"$f":"C75-1","v":826},64,null,5,null,{"$f":"IF(ISBLANK(Stikprøve!D73)=TRUE,0,ABS(Stikprøve!D73))","v":0},null,null,{"$f":"IF(ISBLANK(Stikprøve!E73)=TRUE,0,ABS(Stikprøve!E73))","v":0},null,null,{"$f":"IF(ISBLANK(Stikprøve!F73)=TRUE,0,ABS(Stikprøve!F73))","v":0},null,null,null,null,"","","","","","","","",""]
["Nej",null,827,"-",849,65,null,5,null,{"$f":"IF(ISBLANK(Stikprøve!D74)=TRUE,0,ABS(Stikprøve!D74))","v":0},null,null,{"$f":"IF(ISBLANK(Stikprøve!E74)=TRUE,0,ABS(Stikprøve!E74))","v":0},null,null,{"$f":"IF(ISBLANK(Stikprøve!F74)=TRUE,0,ABS(Stikprøve!F74))","v":0},null,null,null,null,"","","","","","","","",""]
["Nej",null,850,"-",850,65,null,6,null,{"$f":"IF(ISBLANK(Stikprøve!D75)=TRUE,0,ABS(Stikprøve!D75))","v":0},null,null,{"$f":"IF(ISBLANK(Stikprøve!E75)=TRUE,0,ABS(Stikprøve!E75))","v":0},null,null,{"$f":"IF(ISBLANK(Stikprøve!F75)=TRUE,0,ABS(Stikprøve!F75))","v":0},null,null,null,null,"","","","","","","","",""]
["Nej",null,851,"-",873,66,null,6,null,{"$f":"IF(ISBLANK(Stikprøve!D76)=TRUE,0,ABS(Stikprøve!D76))","v":0},null,null,{"$f":"IF(ISBLANK(Stikprøve!E76)=TRUE,0,ABS(Stikprøve!E76))","v":0},null,null,{"$f":"IF(ISBLANK(Stikprøve!F76)=TRUE,0,ABS(Stikprøve!F76))","v":0},null,null,null,null,"","","","","","","","",""]
["Nej",null,874,"-",896,67,null,6,null,{"$f":"IF(ISBLANK(Stikprøve!D77)=TRUE,0,ABS(Stikprøve!D77))","v":0},null,null,{"$f":"IF(ISBLANK(Stikprøve!E77)=TRUE,0,ABS(Stikprøve!E77))","v":0},null,null,{"$f":"IF(ISBLANK(Stikprøve!F77)=TRUE,0,ABS(Stikprøve!F77))","v":0},null,null,null,null,"","","","","","","","",""]
["Nej",null,897,"-",920,68,null,6,null,{"$f":"IF(ISBLANK(Stikprøve!D78)=TRUE,0,ABS(Stikprøve!D78))","v":0},null,null,{"$f":"IF(ISBLANK(Stikprøve!E78)=TRUE,0,ABS(Stikprøve!E78))","v":0},null,null,{"$f":"IF(ISBLANK(Stikprøve!F78)=TRUE,0,ABS(Stikprøve!F78))","v":0},null,null,null,null,"","","","","","","","",""]
["Nej",null,921,"-",943,69,null,6,null,{"$f":"IF(ISBLANK(Stikprøve!D79)=TRUE,0,ABS(Stikprøve!D79))","v":0},null,null,{"$f":"IF(ISBLANK(Stikprøve!E79)=TRUE,0,ABS(Stikprøve!E79))","v":0},null,null,{"$f":"IF(ISBLANK(Stikprøve!F79)=TRUE,0,ABS(Stikprøve!F79))","v":0},null,null,null,null,"","","","","","","","",""]
["Nej",null,944,"-",966,70,null,6,null,{"$f":"IF(ISBLANK(Stikprøve!D80)=TRUE,0,ABS(Stikprøve!D80))","v":0},null,null,{"$f":"IF(ISBLANK(Stikprøve!E80)=TRUE,0,ABS(Stikprøve!E80))","v":0},null,null,{"$f":"IF(ISBLANK(Stikprøve!F80)=TRUE,0,ABS(Stikprøve!F80))","v":0},null,null,null,null,"","","","","","","","",""]
["Nej",null,967,"-",990,71,null,6,null,{"$f":"IF(ISBLANK(Stikprøve!D81)=TRUE,0,ABS(Stikprøve!D81))","v":0},null,null,{"$f":"IF(ISBLANK(Stikprøve!E81)=TRUE,0,ABS(Stikprøve!E81))","v":0},null,null,{"$f":"IF(ISBLANK(Stikprøve!F81)=TRUE,0,ABS(Stikprøve!F81))","v":0},null,null,null,null,"","","","","","","","",""]
["Nej",null,991,"-",1013,72,null,6,null,{"$f":"IF(ISBLANK(Stikprøve!D82)=TRUE,0,ABS(Stikprøve!D82))","v":0},null,null,{"$f":"IF(ISBLANK(Stikprøve!E82)=TRUE,0,ABS(Stikprøve!E82))","v":0},null,null,{"$f":"IF(ISBLANK(Stikprøve!F82)=TRUE,0,ABS(Stikprøve!F82))","v":0},null,null,null,null,"","","","","","","","",""]
["Nej",null,1014,"-",1036,73,null,6,null,{"$f":"IF(ISBLANK(Stikprøve!D83)=TRUE,0,ABS(Stikprøve!D83))","v":0},null,null,{"$f":"IF(ISBLANK(Stikprøve!E83)=TRUE,0,ABS(Stikprøve!E83))","v":0},null,null,{"$f":"IF(ISBLANK(Stikprøve!F83)=TRUE,0,ABS(Stikprøve!F83))","v":0},null,null,null,null,"","","","","","","","",""]
["Nej",null,1037,"-",1060,74,null,6,null,{"$f":"IF(ISBLANK(Stikprøve!D84)=TRUE,0,ABS(Stikprøve!D84))","v":0},null,null,{"$f":"IF(ISBLANK(Stikprøve!E84)=TRUE,0,ABS(Stikprøve!E84))","v":0},null,null,{"$f":"IF(ISBLANK(Stikprøve!F84)=TRUE,0,ABS(Stikprøve!F84))","v":0},null,null,null,null,"","","","","","","","",""]
["Nej",null,1061,"-",1083,75,null,6,null,{"$f":"IF(ISBLANK(Stikprøve!D85)=TRUE,0,ABS(Stikprøve!D85))","v":0},null,null,{"$f":"IF(ISBLANK(Stikprøve!E85)=TRUE,0,ABS(Stikprøve!E85))","v":0},null,null,{"$f":"IF(ISBLANK(Stikprøve!F85)=TRUE,0,ABS(Stikprøve!F85))","v":0},null,null,null,null,"","","","","","","","",""]
["Nej",null,1084,"-",1106,76,null,6,null,{"$f":"IF(ISBLANK(Stikprøve!D86)=TRUE,0,ABS(Stikprøve!D86))","v":0},null,null,{"$f":"IF(ISBLANK(Stikprøve!E86)=TRUE,0,ABS(Stikprøve!E86))","v":0},null,null,{"$f":"IF(ISBLANK(Stikprøve!F86)=TRUE,0,ABS(Stikprøve!F86))","v":0},null,null,null,null,"","","","","","","","",""]
["Nej",null,1107,"-",1130,77,null,6,null,{"$f":"IF(ISBLANK(Stikprøve!D87)=TRUE,0,ABS(Stikprøve!D87))","v":0},null,null,{"$f":"IF(ISBLANK(Stikprøve!E87)=TRUE,0,ABS(Stikprøve!E87))","v":0},null,null,{"$f":"IF(ISBLANK(Stikprøve!F87)=TRUE,0,ABS(Stikprøve!F87))","v":0},null,null,null,null,"","","","","","","","",""]
["Nej",null,1131,"-",1153,78,null,6,null,{"$f":"IF(ISBLANK(Stikprøve!D88)=TRUE,0,ABS(Stikprøve!D88))","v":0},null,null,{"$f":"IF(ISBLANK(Stikprøve!E88)=TRUE,0,ABS(Stikprøve!E88))","v":0},null,null,{"$f":"IF(ISBLANK(Stikprøve!F88)=TRUE,0,ABS(Stikprøve!F88))","v":0},null,null,null,null,"","","","","","","","",""]
["Nej",null,1154,"-",1176,79,null,6,null,{"$f":"IF(ISBLANK(Stikprøve!D89)=TRUE,0,ABS(Stikprøve!D89))","v":0},null,null,{"$f":"IF(ISBLANK(Stikprøve!E89)=TRUE,0,ABS(Stikprøve!E89))","v":0},null,null,{"$f":"IF(ISBLANK(Stikprøve!F89)=TRUE,0,ABS(Stikprøve!F89))","v":0},null,null,null,null,"","","","","","","","",""]
["Nej",null,1177,"-",1199,80,null,6,null,{"$f":"IF(ISBLANK(Stikprøve!D90)=TRUE,0,ABS(Stikprøve!D90))","v":0},null,null,{"$f":"IF(ISBLANK(Stikprøve!E90)=TRUE,0,ABS(Stikprøve!E90))","v":0},null,null,{"$f":"IF(ISBLANK(Stikprøve!F90)=TRUE,0,ABS(Stikprøve!F90))","v":0},null,null,null,null,"","","","","","","","",""]
["Nej",null,1200,"-",1200,80,null,7,null,{"$f":"IF(ISBLANK(Stikprøve!D91)=TRUE,0,ABS(Stikprøve!D91))","v":0},null,null,{"$f":"IF(ISBLANK(Stikprøve!E91)=TRUE,0,ABS(Stikprøve!E91))","v":0},null,null,{"$f":"IF(ISBLANK(Stikprøve!F91)=TRUE,0,ABS(Stikprøve!F91))","v":0},null,null,null,null,"","","","","","","","",""]
["Nej",null,1201,"-",1244,81,null,7,null,{"$f":"IF(ISBLANK(Stikprøve!D92)=TRUE,0,ABS(Stikprøve!D92))","v":0},null,null,{"$f":"IF(ISBLANK(Stikprøve!E92)=TRUE,0,ABS(Stikprøve!E92))","v":0},null,null,{"$f":"IF(ISBLANK(Stikprøve!F92)=TRUE,0,ABS(Stikprøve!F92))","v":0},null,null,null,null,"","","","","","","","",""]
["Nej",null,1245,"-",1288,82,null,7,null,{"$f":"IF(ISBLANK(Stikprøve!D93)=TRUE,0,ABS(Stikprøve!D93))","v":0},null,null,{"$f":"IF(ISBLANK(Stikprøve!E93)=TRUE,0,ABS(Stikprøve!E93))","v":0},null,null,{"$f":"IF(ISBLANK(Stikprøve!F93)=TRUE,0,ABS(Stikprøve!F93))","v":0},null,null,null,null,"","","","","","","","",""]
["Nej",null,1289,"-",1333,83,null,7,null,{"$f":"IF(ISBLANK(Stikprøve!D94)=TRUE,0,ABS(Stikprøve!D94))","v":0},null,null,{"$f":"IF(ISBLANK(Stikprøve!E94)=TRUE,0,ABS(Stikprøve!E94))","v":0},null,null,{"$f":"IF(ISBLANK(Stikprøve!F94)=TRUE,0,ABS(Stikprøve!F94))","v":0},null,null,null,null,"","","","","","","","",""]
["Nej",null,1334,"-",1377,84,null,7,null,{"$f":"IF(ISBLANK(Stikprøve!D95)=TRUE,0,ABS(Stikprøve!D95))","v":0},null,null,{"$f":"IF(ISBLANK(Stikprøve!E95)=TRUE,0,ABS(Stikprøve!E95))","v":0},null,null,{"$f":"IF(ISBLANK(Stikprøve!F95)=TRUE,0,ABS(Stikprøve!F95))","v":0},null,null,null,null,"","","","","","","","",""]
["Nej",null,1378,"-",1422,85,null,7,null,{"$f":"IF(ISBLANK(Stikprøve!D96)=TRUE,0,ABS(Stikprøve!D96))","v":0},null,null,{"$f":"IF(ISBLANK(Stikprøve!E96)=TRUE,0,ABS(Stikprøve!E96))","v":0},null,null,{"$f":"IF(ISBLANK(Stikprøve!F96)=TRUE,0,ABS(Stikprøve!F96))","v":0},null,null,null,null,"","","","","","","","",""]
["Nej",null,1423,"-",1466,86,null,7,null,{"$f":"IF(ISBLANK(Stikprøve!D97)=TRUE,0,ABS(Stikprøve!D97))","v":0},null,null,{"$f":"IF(ISBLANK(Stikprøve!E97)=TRUE,0,ABS(Stikprøve!E97))","v":0},null,null,{"$f":"IF(ISBLANK(Stikprøve!F97)=TRUE,0,ABS(Stikprøve!F97))","v":0},null,null,null,null,"","","","","","","","",""]
["Nej",null,1467,"-",1511,87,null,7,null,{"$f":"IF(ISBLANK(Stikprøve!D98)=TRUE,0,ABS(Stikprøve!D98))","v":0},null,null,{"$f":"IF(ISBLANK(Stikprøve!E98)=TRUE,0,ABS(Stikprøve!E98))","v":0},null,null,{"$f":"IF(ISBLANK(Stikprøve!F98)=TRUE,0,ABS(Stikprøve!F98))","v":0},null,null,null,null,"","","","","","","","",""]
["Nej",null,1512,"-",1555,88,null,7,null,{"$f":"IF(ISBLANK(Stikprøve!D99)=TRUE,0,ABS(Stikprøve!D99))","v":0},null,null,{"$f":"IF(ISBLANK(Stikprøve!E99)=TRUE,0,ABS(Stikprøve!E99))","v":0},null,null,{"$f":"IF(ISBLANK(Stikprøve!F99)=TRUE,0,ABS(Stikprøve!F99))","v":0},null,null,null,null,"","","","","","","","",""]
["Nej",null,1556,"-",1600,89,null,7,null,{"$f":"IF(ISBLANK(Stikprøve!D100)=TRUE,0,ABS(Stikprøve!D100))","v":0},null,null,{"$f":"IF(ISBLANK(Stikprøve!E100)=TRUE,0,ABS(Stikprøve!E100))","v":0},null,null,{"$f":"IF(ISBLANK(Stikprøve!F100)=TRUE,0,ABS(Stikprøve!F100))","v":0},null,null,null,null,"","","","","","","","",""]
["Nej",null,1601,"-",1644,90,null,7,null,{"$f":"IF(ISBLANK(Stikprøve!D101)=TRUE,0,ABS(Stikprøve!D101))","v":0},null,null,{"$f":"IF(ISBLANK(Stikprøve!E101)=TRUE,0,ABS(Stikprøve!E101))","v":0},null,null,{"$f":"IF(ISBLANK(Stikprøve!F101)=TRUE,0,ABS(Stikprøve!F101))","v":0},null,null,null,null,"","","","","","","","",""]
["Nej",null,1645,"-",1688,91,null,7,null,{"$f":"IF(ISBLANK(Stikprøve!D102)=TRUE,0,ABS(Stikprøve!D102))","v":0},null,null,{"$f":"IF(ISBLANK(Stikprøve!E102)=TRUE,0,ABS(Stikprøve!E102))","v":0},null,null,{"$f":"IF(ISBLANK(Stikprøve!F102)=TRUE,0,ABS(Stikprøve!F102))","v":0},null,null,null,null,"","","","","","","","",""]
[{"$f":"IF(AND($G$2>(C104-1),$G$2<(E104+1)),\"Ja\",\"Nej\")","v":"Nej"},null,1689,"-",1733,92,null,7,null,{"$f":"IF(ISBLANK(Stikprøve!D103)=TRUE,0,ABS(Stikprøve!D103))","v":0},null,null,{"$f":"IF(ISBLANK(Stikprøve!E103)=TRUE,0,ABS(Stikprøve!E103))","v":0},null,null,{"$f":"IF(ISBLANK(Stikprøve!F103)=TRUE,0,ABS(Stikprøve!F103))","v":0},null,null,null,null,"","","","","","","","",""]
["Nej",null,1734,"-",1777,93,null,7,null,{"$f":"IF(ISBLANK(Stikprøve!D104)=TRUE,0,ABS(Stikprøve!D104))","v":0},null,null,{"$f":"IF(ISBLANK(Stikprøve!E104)=TRUE,0,ABS(Stikprøve!E104))","v":0},null,null,{"$f":"IF(ISBLANK(Stikprøve!F104)=TRUE,0,ABS(Stikprøve!F104))","v":0},null,null,null,null,"","","","","","","","",""]
["Nej",null,1778,"-",1822,94,null,7,null,{"$f":"IF(ISBLANK(Stikprøve!D105)=TRUE,0,ABS(Stikprøve!D105))","v":0},null,null,{"$f":"IF(ISBLANK(Stikprøve!E105)=TRUE,0,ABS(Stikprøve!E105))","v":0},null,null,{"$f":"IF(ISBLANK(Stikprøve!F105)=TRUE,0,ABS(Stikprøve!F105))","v":0},null,null,null,null,"","","","","","","","",""]
["Nej",null,1823,"-",1866,95,null,7,null,{"$f":"IF(ISBLANK(Stikprøve!D106)=TRUE,0,ABS(Stikprøve!D106))","v":0},null,null,{"$f":"IF(ISBLANK(Stikprøve!E106)=TRUE,0,ABS(Stikprøve!E106))","v":0},null,null,{"$f":"IF(ISBLANK(Stikprøve!F106)=TRUE,0,ABS(Stikprøve!F106))","v":0},null,null,null,null,"","","","","","","","",""]
["Nej",null,1867,"-",1911,96,null,8,null,{"$f":"IF(ISBLANK(Stikprøve!D107)=TRUE,0,ABS(Stikprøve!D107))","v":0},null,null,{"$f":"IF(ISBLANK(Stikprøve!E107)=TRUE,0,ABS(Stikprøve!E107))","v":0},null,null,{"$f":"IF(ISBLANK(Stikprøve!F107)=TRUE,0,ABS(Stikprøve!F107))","v":0},null,null,null,null,"","","","","","","","",""]
["Nej",null,1912,"-",1955,97,null,8,null,{"$f":"IF(ISBLANK(Stikprøve!D108)=TRUE,0,ABS(Stikprøve!D108))","v":0},null,null,{"$f":"IF(ISBLANK(Stikprøve!E108)=TRUE,0,ABS(Stikprøve!E108))","v":0},null,null,{"$f":"IF(ISBLANK(Stikprøve!F108)=TRUE,0,ABS(Stikprøve!F108))","v":0},null,null,null,null,"","","","","","","","",""]
["Nej",null,1956,"-",2000,98,null,8,null,{"$f":"IF(ISBLANK(Stikprøve!D109)=TRUE,0,ABS(Stikprøve!D109))","v":0},null,null,{"$f":"IF(ISBLANK(Stikprøve!E109)=TRUE,0,ABS(Stikprøve!E109))","v":0},null,null,{"$f":"IF(ISBLANK(Stikprøve!F109)=TRUE,0,ABS(Stikprøve!F109))","v":0},null,null,null,null,"","","","","","","","",""]
["Nej",null,2001,"-",2044,99,null,8,null,{"$f":"IF(ISBLANK(Stikprøve!D110)=TRUE,0,ABS(Stikprøve!D110))","v":0},null,null,{"$f":"IF(ISBLANK(Stikprøve!E110)=TRUE,0,ABS(Stikprøve!E110))","v":0},null,null,{"$f":"IF(ISBLANK(Stikprøve!F110)=TRUE,0,ABS(Stikprøve!F110))","v":0},null,null,null,null,"","","","","","","","",""]
["Nej",null,2045,"-",2088,100,null,8,null,{"$f":"IF(ISBLANK(Stikprøve!D111)=TRUE,0,ABS(Stikprøve!D111))","v":0},null,null,{"$f":"IF(ISBLANK(Stikprøve!E111)=TRUE,0,ABS(Stikprøve!E111))","v":0},null,null,{"$f":"IF(ISBLANK(Stikprøve!F111)=TRUE,0,ABS(Stikprøve!F111))","v":0},null,null,null,null,{"$f":"IF($J112>L$16,1,IF($M112>L$17,1,IF($P112>L$18,1,\"\")))","v":""},{"$f":"IF($J112>M$16,1,IF($M112>M$17,1,IF($P112>M$18,1,\"\")))","v":""},{"$f":"IF($J112>N$16,1,IF($M112>N$17,1,IF($P112>N$18,1,\"\")))","v":""},{"$f":"IF($J112>O$16,1,IF($M112>O$17,1,IF($P112>O$18,1,\"\")))","v":""},{"$f":"IF($J112>P$16,1,IF($M112>P$17,1,IF($P112>P$18,1,\"\")))","v":""},{"$f":"IF($J112>Q$16,1,IF($M112>Q$17,1,IF($P112>Q$18,1,\"\")))","v":""},{"$f":"IF($J112>R$16,1,IF($M112>R$17,1,IF($P112>R$18,1,\"\")))","v":""},{"$f":"IF($J112>S$16,1,IF($M112>S$17,1,IF($P112>S$18,1,\"\")))","v":""},{"$f":"IF($J112>T$16,1,IF($M112>T$17,1,IF($P112>T$18,1,\"\")))","v":""}]
["Nej",null,2089,"-",2133,101,null,8,null,{"$f":"IF(ISBLANK(Stikprøve!D112)=TRUE,0,ABS(Stikprøve!D112))","v":0},null,null,{"$f":"IF(ISBLANK(Stikprøve!E112)=TRUE,0,ABS(Stikprøve!E112))","v":0},null,null,{"$f":"IF(ISBLANK(Stikprøve!F112)=TRUE,0,ABS(Stikprøve!F112))","v":0},null,null,null,null,"","","","","","","","",""]
["Nej",null,2134,"-",2177,102,null,8,null,{"$f":"IF(ISBLANK(Stikprøve!D113)=TRUE,0,ABS(Stikprøve!D113))","v":0},null,null,{"$f":"IF(ISBLANK(Stikprøve!E113)=TRUE,0,ABS(Stikprøve!E113))","v":0},null,null,{"$f":"IF(ISBLANK(Stikprøve!F113)=TRUE,0,ABS(Stikprøve!F113))","v":0},null,null,null,null,"","","","","","","","",""]
["Nej",null,2178,"-",2199,103,null,8,null,{"$f":"IF(ISBLANK(Stikprøve!D114)=TRUE,0,ABS(Stikprøve!D114))","v":0},null,null,{"$f":"IF(ISBLANK(Stikprøve!E114)=TRUE,0,ABS(Stikprøve!E114))","v":0},null,null,{"$f":"IF(ISBLANK(Stikprøve!F114)=TRUE,0,ABS(Stikprøve!F114))","v":0},null,null,null,null,"","","","","","","","",""]
["Nej",null,2200,"-",2222,103,null,8,null,{"$f":"IF(ISBLANK(Stikprøve!D115)=TRUE,0,ABS(Stikprøve!D115))","v":0},null,null,{"$f":"IF(ISBLANK(Stikprøve!E115)=TRUE,0,ABS(Stikprøve!E115))","v":0},null,null,{"$f":"IF(ISBLANK(Stikprøve!F115)=TRUE,0,ABS(Stikprøve!F115))","v":0},null,null,null,null,"","","","","","","","",""]
["Nej",null,2223,"-",2266,104,null,8,null,{"$f":"IF(ISBLANK(Stikprøve!D116)=TRUE,0,ABS(Stikprøve!D116))","v":0},null,null,{"$f":"IF(ISBLANK(Stikprøve!E116)=TRUE,0,ABS(Stikprøve!E116))","v":0},null,null,{"$f":"IF(ISBLANK(Stikprøve!F116)=TRUE,0,ABS(Stikprøve!F116))","v":0},null,null,null,null,"","","","","","","","",""]
["Nej",null,2267,"-",2311,105,null,8,null,{"$f":"IF(ISBLANK(Stikprøve!D117)=TRUE,0,ABS(Stikprøve!D117))","v":0},null,null,{"$f":"IF(ISBLANK(Stikprøve!E117)=TRUE,0,ABS(Stikprøve!E117))","v":0},null,null,{"$f":"IF(ISBLANK(Stikprøve!F117)=TRUE,0,ABS(Stikprøve!F117))","v":0},null,null,null,null,"","","","","","","","",""]
["Nej",null,2312,"-",2355,106,null,8,null,{"$f":"IF(ISBLANK(Stikprøve!D118)=TRUE,0,ABS(Stikprøve!D118))","v":0},null,null,{"$f":"IF(ISBLANK(Stikprøve!E118)=TRUE,0,ABS(Stikprøve!E118))","v":0},null,null,{"$f":"IF(ISBLANK(Stikprøve!F118)=TRUE,0,ABS(Stikprøve!F118))","v":0},null,null,null,null,"","","","","","","","",""]
["Nej",null,2356,"-",2400,107,null,8,null,{"$f":"IF(ISBLANK(Stikprøve!D119)=TRUE,0,ABS(Stikprøve!D119))","v":0},null,null,{"$f":"IF(ISBLANK(Stikprøve!E119)=TRUE,0,ABS(Stikprøve!E119))","v":0},null,null,{"$f":"IF(ISBLANK(Stikprøve!F119)=TRUE,0,ABS(Stikprøve!F119))","v":0},null,null,null,null,"","","","","","","","",""]
["Nej",null,2401,"-",2444,108,null,8,null,{"$f":"IF(ISBLANK(Stikprøve!D120)=TRUE,0,ABS(Stikprøve!D120))","v":0},null,null,{"$f":"IF(ISBLANK(Stikprøve!E120)=TRUE,0,ABS(Stikprøve!E120))","v":0},null,null,{"$f":"IF(ISBLANK(Stikprøve!F120)=TRUE,0,ABS(Stikprøve!F120))","v":0},null,null,null,null,"","","","","","","","",""]
["Nej",null,2445,"-",2488,109,null,8,null,{"$f":"IF(ISBLANK(Stikprøve!D121)=TRUE,0,ABS(Stikprøve!D121))","v":0},null,null,{"$f":"IF(ISBLANK(Stikprøve!E121)=TRUE,0,ABS(Stikprøve!E121))","v":0},null,null,{"$f":"IF(ISBLANK(Stikprøve!F121)=TRUE,0,ABS(Stikprøve!F121))","v":0},null,null,null,null,"","","","","","","","",""]
["Nej",null,2489,"-",2533,110,null,8,null,{"$f":"IF(ISBLANK(Stikprøve!D122)=TRUE,0,ABS(Stikprøve!D122))","v":0},null,null,{"$f":"IF(ISBLANK(Stikprøve!E122)=TRUE,0,ABS(Stikprøve!E122))","v":0},null,null,{"$f":"IF(ISBLANK(Stikprøve!F122)=TRUE,0,ABS(Stikprøve!F122))","v":0},null,null,null,null,"","","","","","","","",""]
["Nej",null,2534,"-",2577,111,null,9,null,{"$f":"IF(ISBLANK(Stikprøve!D123)=TRUE,0,ABS(Stikprøve!D123))","v":0},null,null,{"$f":"IF(ISBLANK(Stikprøve!E123)=TRUE,0,ABS(Stikprøve!E123))","v":0},null,null,{"$f":"IF(ISBLANK(Stikprøve!F123)=TRUE,0,ABS(Stikprøve!F123))","v":0},null,null,null,null,"","","","","","","","",""]
["Nej",null,2578,"-",2622,112,null,9,null,{"$f":"IF(ISBLANK(Stikprøve!D124)=TRUE,0,ABS(Stikprøve!D124))","v":0},null,null,{"$f":"IF(ISBLANK(Stikprøve!E124)=TRUE,0,ABS(Stikprøve!E124))","v":0},null,null,{"$f":"IF(ISBLANK(Stikprøve!F124)=TRUE,0,ABS(Stikprøve!F124))","v":0},null,null,null,null,"","","","","","","","",""]
["Nej",null,2623,"-",2666,113,null,9,null,{"$f":"IF(ISBLANK(Stikprøve!D125)=TRUE,0,ABS(Stikprøve!D125))","v":0},null,null,{"$f":"IF(ISBLANK(Stikprøve!E125)=TRUE,0,ABS(Stikprøve!E125))","v":0},null,null,{"$f":"IF(ISBLANK(Stikprøve!F125)=TRUE,0,ABS(Stikprøve!F125))","v":0},null,null,null,null,"","","","","","","","",""]
["Nej",null,2667,"-",2711,114,null,9,null,{"$f":"IF(ISBLANK(Stikprøve!D126)=TRUE,0,ABS(Stikprøve!D126))","v":0},null,null,{"$f":"IF(ISBLANK(Stikprøve!E126)=TRUE,0,ABS(Stikprøve!E126))","v":0},null,null,{"$f":"IF(ISBLANK(Stikprøve!F126)=TRUE,0,ABS(Stikprøve!F126))","v":0},null,null,null,null,"","","","","","","","",""]
["Nej",null,2712,"-",2755,115,null,9,null,{"$f":"IF(ISBLANK(Stikprøve!D127)=TRUE,0,ABS(Stikprøve!D127))","v":0},null,null,{"$f":"IF(ISBLANK(Stikprøve!E127)=TRUE,0,ABS(Stikprøve!E127))","v":0},null,null,{"$f":"IF(ISBLANK(Stikprøve!F127)=TRUE,0,ABS(Stikprøve!F127))","v":0},null,null,null,null,"","","","","","","","",""]
["Nej",null,2756,"-",2800,116,null,9,null,{"$f":"IF(ISBLANK(Stikprøve!D128)=TRUE,0,ABS(Stikprøve!D128))","v":0},null,null,{"$f":"IF(ISBLANK(Stikprøve!E128)=TRUE,0,ABS(Stikprøve!E128))","v":0},null,null,{"$f":"IF(ISBLANK(Stikprøve!F128)=TRUE,0,ABS(Stikprøve!F128))","v":0},null,null,null,null,"","","","","","","","",""]
["Nej",null,2801,"-",2844,117,null,9,null,{"$f":"IF(ISBLANK(Stikprøve!D129)=TRUE,0,ABS(Stikprøve!D129))","v":0},null,null,{"$f":"IF(ISBLANK(Stikprøve!E129)=TRUE,0,ABS(Stikprøve!E129))","v":0},null,null,{"$f":"IF(ISBLANK(Stikprøve!F129)=TRUE,0,ABS(Stikprøve!F129))","v":0},null,null,null,null,"","","","","","","","",""]
["Nej",null,2845,"-",2888,118,null,9,null,{"$f":"IF(ISBLANK(Stikprøve!D130)=TRUE,0,ABS(Stikprøve!D130))","v":0},null,null,{"$f":"IF(ISBLANK(Stikprøve!E130)=TRUE,0,ABS(Stikprøve!E130))","v":0},null,null,{"$f":"IF(ISBLANK(Stikprøve!F130)=TRUE,0,ABS(Stikprøve!F130))","v":0},null,null,null,null,"","","","","","","","",""]
["Nej",null,2889,"-",2933,119,null,9,null,{"$f":"IF(ISBLANK(Stikprøve!D131)=TRUE,0,ABS(Stikprøve!D131))","v":0},null,null,{"$f":"IF(ISBLANK(Stikprøve!E131)=TRUE,0,ABS(Stikprøve!E131))","v":0},null,null,{"$f":"IF(ISBLANK(Stikprøve!F131)=TRUE,0,ABS(Stikprøve!F131))","v":0},null,null,null,null,"","","","","","","","",""]
["Nej",null,2934,"-",2977,120,null,9,null,{"$f":"IF(ISBLANK(Stikprøve!D132)=TRUE,0,ABS(Stikprøve!D132))","v":0},null,null,{"$f":"IF(ISBLANK(Stikprøve!E132)=TRUE,0,ABS(Stikprøve!E132))","v":0},null,null,{"$f":"IF(ISBLANK(Stikprøve!F132)=TRUE,0,ABS(Stikprøve!F132))","v":0},null,null,null,null,"","","","","","","","",""]
["Nej",null,2978,"-",3022,121,null,9,null,{"$f":"IF(ISBLANK(Stikprøve!D133)=TRUE,0,ABS(Stikprøve!D133))","v":0},null,null,{"$f":"IF(ISBLANK(Stikprøve!E133)=TRUE,0,ABS(Stikprøve!E133))","v":0},null,null,{"$f":"IF(ISBLANK(Stikprøve!F133)=TRUE,0,ABS(Stikprøve!F133))","v":0},null,null,null,null,"","","","","","","","",""]
["Nej",null,3023,"-",3066,122,null,9,null,{"$f":"IF(ISBLANK(Stikprøve!D134)=TRUE,0,ABS(Stikprøve!D134))","v":0},null,null,{"$f":"IF(ISBLANK(Stikprøve!E134)=TRUE,0,ABS(Stikprøve!E134))","v":0},null,null,{"$f":"IF(ISBLANK(Stikprøve!F134)=TRUE,0,ABS(Stikprøve!F134))","v":0},null,null,null,null,"","","","","","","","",""]
["Nej",null,3067,"-",3111,123,null,9,null,{"$f":"IF(ISBLANK(Stikprøve!D135)=TRUE,0,ABS(Stikprøve!D135))","v":0},null,null,{"$f":"IF(ISBLANK(Stikprøve!E135)=TRUE,0,ABS(Stikprøve!E135))","v":0},null,null,{"$f":"IF(ISBLANK(Stikprøve!F135)=TRUE,0,ABS(Stikprøve!F135))","v":0},null,null,null,null,"","","","","","","","",""]
["Nej",null,3112,"-",3155,124,null,9,null,{"$f":"IF(ISBLANK(Stikprøve!D136)=TRUE,0,ABS(Stikprøve!D136))","v":0},null,null,{"$f":"IF(ISBLANK(Stikprøve!E136)=TRUE,0,ABS(Stikprøve!E136))","v":0},null,null,{"$f":"IF(ISBLANK(Stikprøve!F136)=TRUE,0,ABS(Stikprøve!F136))","v":0},null,null,null,null,"","","","","","","","",""]
["Nej",null,3156,"-",{"$f":"C139-1","v":3199},125,null,9,null,{"$f":"IF(ISBLANK(Stikprøve!D137)=TRUE,0,ABS(Stikprøve!D137))","v":0},null,null,{"$f":"IF(ISBLANK(Stikprøve!E137)=TRUE,0,ABS(Stikprøve!E137))","v":0},null,null,{"$f":"IF(ISBLANK(Stikprøve!F137)=TRUE,0,ABS(Stikprøve!F137))","v":0},null,null,null,null,"","","","","","","","",""]
["Nej",null,3200,"-",3200,125,null,10,null,{"$f":"IF(ISBLANK(Stikprøve!D138)=TRUE,0,ABS(Stikprøve!D138))","v":0},null,null,{"$f":"IF(ISBLANK(Stikprøve!E138)=TRUE,0,ABS(Stikprøve!E138))","v":0},null,null,{"$f":"IF(ISBLANK(Stikprøve!F138)=TRUE,0,ABS(Stikprøve!F138))","v":0},null,null,null,null,"","","","","","","","",""]
[null,null,null,null,null,null,null,null,null,{"$f":"IF(ISBLANK(Stikprøve!D139)=TRUE,0,ABS(Stikprøve!D139))","v":0},null,null,{"$f":"IF(ISBLANK(Stikprøve!E139)=TRUE,0,ABS(Stikprøve!E139))","v":0},null,null,{"$f":"IF(ISBLANK(Stikprøve!F139)=TRUE,0,ABS(Stikprøve!F139))","v":0},null,null,null,null,"","","","","","","","",""]
[null,null,null,null,null,null,null,null,null,{"$f":"IF(ISBLANK(Stikprøve!D140)=TRUE,0,ABS(Stikprøve!D140))","v":0},null,null,{"$f":"IF(ISBLANK(Stikprøve!E140)=TRUE,0,ABS(Stikprøve!E140))","v":0},null,null,{"$f":"IF(ISBLANK(Stikprøve!F140)=TRUE,0,ABS(Stikprøve!F140))","v":0},null,null,null,null,"","","","","","","","",""]
[null,null,null,null,null,null,null,null,null,{"$f":"IF(ISBLANK(Stikprøve!D141)=TRUE,0,ABS(Stikprøve!D141))","v":0},null,null,{"$f":"IF(ISBLANK(Stikprøve!E141)=TRUE,0,ABS(Stikprøve!E141))","v":0},null,null,{"$f":"IF(ISBLANK(Stikprøve!F141)=TRUE,0,ABS(Stikprøve!F141))","v":0},null,null,null,null,"","","","","","","","",""]
[null,null,null,null,null,null,null,null,null,{"$f":"IF(ISBLANK(Stikprøve!D142)=TRUE,0,ABS(Stikprøve!D142))","v":0},null,null,{"$f":"IF(ISBLANK(Stikprøve!E142)=TRUE,0,ABS(Stikprøve!E142))","v":0},null,null,{"$f":"IF(ISBLANK(Stikprøve!F142)=TRUE,0,ABS(Stikprøve!F142))","v":0},null,null,null,null,"","","","","","","","",""]
[null,null,null,null,null,null,null,null,null,{"$f":"IF(ISBLANK(Stikprøve!D143)=TRUE,0,ABS(Stikprøve!D143))","v":0},null,null,{"$f":"IF(ISBLANK(Stikprøve!E143)=TRUE,0,ABS(Stikprøve!E143))","v":0},null,null,{"$f":"IF(ISBLANK(Stikprøve!F143)=TRUE,0,ABS(Stikprøve!F143))","v":0},null,null,null,null,"","","","","","","","",""]
[null,null,null,null,null,null,null,null,null,{"$f":"IF(ISBLANK(Stikprøve!D144)=TRUE,0,ABS(Stikprøve!D144))","v":0},null,null,{"$f":"IF(ISBLANK(Stikprøve!E144)=TRUE,0,ABS(Stikprøve!E144))","v":0},null,null,{"$f":"IF(ISBLANK(Stikprøve!F144)=TRUE,0,ABS(Stikprøve!F144))","v":0},null,null,null,null,"","","","","","","","",""]
[null,null,null,null,null,null,null,null,null,{"$f":"IF(ISBLANK(Stikprøve!D145)=TRUE,0,ABS(Stikprøve!D145))","v":0},null,null,{"$f":"IF(ISBLANK(Stikprøve!E145)=TRUE,0,ABS(Stikprøve!E145))","v":0},null,null,{"$f":"IF(ISBLANK(Stikprøve!F145)=TRUE,0,ABS(Stikprøve!F145))","v":0},null,null,null,null,"","","","","","","","",""]
[null,null,null,null,null,null,null,null,null,{"$f":"IF(ISBLANK(Stikprøve!D146)=TRUE,0,ABS(Stikprøve!D146))","v":0},null,null,{"$f":"IF(ISBLANK(Stikprøve!E146)=TRUE,0,ABS(Stikprøve!E146))","v":0},null,null,{"$f":"IF(ISBLANK(Stikprøve!F146)=TRUE,0,ABS(Stikprøve!F146))","v":0},null,null,null,null,"","","","","","","","",""]
[null,null,null,null,null,null,null,null,null,{"$f":"IF(ISBLANK(Stikprøve!D147)=TRUE,0,ABS(Stikprøve!D147))","v":0},null,null,{"$f":"IF(ISBLANK(Stikprøve!E147)=TRUE,0,ABS(Stikprøve!E147))","v":0},null,null,{"$f":"IF(ISBLANK(Stikprøve!F147)=TRUE,0,ABS(Stikprøve!F147))","v":0},null,null,null,null,"","","","","","","","",""]
[null,null,null,null,null,null,null,null,null,{"$f":"IF(ISBLANK(Stikprøve!D148)=TRUE,0,ABS(Stikprøve!D148))","v":0},null,null,{"$f":"IF(ISBLANK(Stikprøve!E148)=TRUE,0,ABS(Stikprøve!E148))","v":0},null,null,{"$f":"IF(ISBLANK(Stikprøve!F148)=TRUE,0,ABS(Stikprøve!F148))","v":0},null,null,null,null,"","","","","","","","",""]
[null,null,null,null,null,null,null,null,null,{"$f":"IF(ISBLANK(Stikprøve!D149)=TRUE,0,ABS(Stikprøve!D149))","v":0},null,null,{"$f":"IF(ISBLANK(Stikprøve!E149)=TRUE,0,ABS(Stikprøve!E149))","v":0},null,null,{"$f":"IF(ISBLANK(Stikprøve!F149)=TRUE,0,ABS(Stikprøve!F149))","v":0},null,null,null,null,"","","","","","","","",""]
[null,null,null,null,null,null,null,null,null,{"$f":"IF(ISBLANK(Stikprøve!D150)=TRUE,0,ABS(Stikprøve!D150))","v":0},null,null,{"$f":"IF(ISBLANK(Stikprøve!E150)=TRUE,0,ABS(Stikprøve!E150))","v":0},null,null,{"$f":"IF(ISBLANK(Stikprøve!F150)=TRUE,0,ABS(Stikprøve!F150))","v":0},null,null,null,null,"","","","","","","","",""]
[null,null,null,null,null,null,null,null,null,{"$f":"IF(ISBLANK(Stikprøve!D151)=TRUE,0,ABS(Stikprøve!D151))","v":0},null,null,{"$f":"IF(ISBLANK(Stikprøve!E151)=TRUE,0,ABS(Stikprøve!E151))","v":0},null,null,{"$f":"IF(ISBLANK(Stikprøve!F151)=TRUE,0,ABS(Stikprøve!F151))","v":0},null,null,null,null,"","","","","","","","",""]
[null,null,null,null,null,null,null,null,null,{"$f":"IF(ISBLANK(Stikprøve!D152)=TRUE,0,ABS(Stikprøve!D152))","v":0},null,null,{"$f":"IF(ISBLANK(Stikprøve!E152)=TRUE,0,ABS(Stikprøve!E152))","v":0},null,null,{"$f":"IF(ISBLANK(Stikprøve!F152)=TRUE,0,ABS(Stikprøve!F152))","v":0},null,null,null,null,"","","","","","","","",""]
[null,null,null,null,null,null,null,null,null,{"$f":"IF(ISBLANK(Stikprøve!D153)=TRUE,0,ABS(Stikprøve!D153))","v":0},null,null,{"$f":"IF(ISBLANK(Stikprøve!E153)=TRUE,0,ABS(Stikprøve!E153))","v":0},null,null,{"$f":"IF(ISBLANK(Stikprøve!F153)=TRUE,0,ABS(Stikprøve!F153))","v":0},null,null,null,null,"","","","","","","","",""]
[null,null,null,null,null,null,null,null,null,{"$f":"IF(ISBLANK(Stikprøve!D154)=TRUE,0,ABS(Stikprøve!D154))","v":0},null,null,{"$f":"IF(ISBLANK(Stikprøve!E154)=TRUE,0,ABS(Stikprøve!E154))","v":0},null,null,{"$f":"IF(ISBLANK(Stikprøve!F154)=TRUE,0,ABS(Stikprøve!F154))","v":0},null,null,null,null,"","","","","","","","",""]
[null,null,null,null,null,null,null,null,null,{"$f":"IF(ISBLANK(Stikprøve!D155)=TRUE,0,ABS(Stikprøve!D155))","v":0},null,null,{"$f":"IF(ISBLANK(Stikprøve!E155)=TRUE,0,ABS(Stikprøve!E155))","v":0},null,null,{"$f":"IF(ISBLANK(Stikprøve!F155)=TRUE,0,ABS(Stikprøve!F155))","v":0},null,null,null,null,"","","","","","","","",""]
[null,null,null,null,null,null,null,null,null,{"$f":"IF(ISBLANK(Stikprøve!D156)=TRUE,0,ABS(Stikprøve!D156))","v":0},null,null,{"$f":"IF(ISBLANK(Stikprøve!E156)=TRUE,0,ABS(Stikprøve!E156))","v":0},null,null,{"$f":"IF(ISBLANK(Stikprøve!F156)=TRUE,0,ABS(Stikprøve!F156))","v":0},null,null,null,null,"","","","","","","","",""]
[null,null,null,null,null,null,null,null,null,{"$f":"IF(ISBLANK(Stikprøve!D157)=TRUE,0,ABS(Stikprøve!D157))","v":0},null,null,{"$f":"IF(ISBLANK(Stikprøve!E157)=TRUE,0,ABS(Stikprøve!E157))","v":0},null,null,{"$f":"IF(ISBLANK(Stikprøve!F157)=TRUE,0,ABS(Stikprøve!F157))","v":0},null,null,null,null,"","","","","","","","",""]
[null,null,null,null,null,null,null,null,null,{"$f":"IF(ISBLANK(Stikprøve!D158)=TRUE,0,ABS(Stikprøve!D158))","v":0},null,null,{"$f":"IF(ISBLANK(Stikprøve!E158)=TRUE,0,ABS(Stikprøve!E158))","v":0},null,null,{"$f":"IF(ISBLANK(Stikprøve!F158)=TRUE,0,ABS(Stikprøve!F158))","v":0},null,null,null,null,"","","","","","","","",""]
[null,null,null,null,null,null,null,null,null,{"$f":"IF(ISBLANK(Stikprøve!D159)=TRUE,0,ABS(Stikprøve!D159))","v":0},null,null,{"$f":"IF(ISBLANK(Stikprøve!E159)=TRUE,0,ABS(Stikprøve!E159))","v":0},null,null,{"$f":"IF(ISBLANK(Stikprøve!F159)=TRUE,0,ABS(Stikprøve!F159))","v":0},null,null,null,null,"","","","","","","","",""]
[null,null,null,null,null,null,null,null,null,{"$f":"IF(ISBLANK(Stikprøve!D160)=TRUE,0,ABS(Stikprøve!D160))","v":0},null,null,{"$f":"IF(ISBLANK(Stikprøve!E160)=TRUE,0,ABS(Stikprøve!E160))","v":0},null,null,{"$f":"IF(ISBLANK(Stikprøve!F160)=TRUE,0,ABS(Stikprøve!F160))","v":0},null,null,null,null,"","","","","","","","",""]
[null,null,null,null,null,null,null,null,null,{"$f":"IF(ISBLANK(Stikprøve!D161)=TRUE,0,ABS(Stikprøve!D161))","v":0},null,null,{"$f":"IF(ISBLANK(Stikprøve!E161)=TRUE,0,ABS(Stikprøve!E161))","v":0},null,null,{"$f":"IF(ISBLANK(Stikprøve!F161)=TRUE,0,ABS(Stikprøve!F161))","v":0},null,null,null,null,"","","","","","","","",""]
[null,null,null,null,null,null,null,null,null,{"$f":"IF(ISBLANK(Stikprøve!D162)=TRUE,0,ABS(Stikprøve!D162))","v":0},null,null,{"$f":"IF(ISBLANK(Stikprøve!E162)=TRUE,0,ABS(Stikprøve!E162))","v":0},null,null,{"$f":"IF(ISBLANK(Stikprøve!F162)=TRUE,0,ABS(Stikprøve!F162))","v":0},null,null,null,null,"","","","","","","","",""]
[null,null,null,null,null,null,null,null,null,{"$f":"IF(ISBLANK(Stikprøve!D163)=TRUE,0,ABS(Stikprøve!D163))","v":0},null,null,{"$f":"IF(ISBLANK(Stikprøve!E163)=TRUE,0,ABS(Stikprøve!E163))","v":0},null,null,{"$f":"IF(ISBLANK(Stikprøve!F163)=TRUE,0,ABS(Stikprøve!F163))","v":0},null,null,null,null,"","","","","","","","",""]
[null,null,null,null,null,null,null,null,null,{"$f":"IF(ISBLANK(Stikprøve!D164)=TRUE,0,ABS(Stikprøve!D164))","v":0},null,null,{"$f":"IF(ISBLANK(Stikprøve!E164)=TRUE,0,ABS(Stikprøve!E164))","v":0},null,null,{"$f":"IF(ISBLANK(Stikprøve!F164)=TRUE,0,ABS(Stikprøve!F164))","v":0},null,null,null,null,"","","","","","","","",""]
[null,null,null,null,null,null,null,null,null,{"$f":"IF(ISBLANK(Stikprøve!D165)=TRUE,0,ABS(Stikprøve!D165))","v":0},null,null,{"$f":"IF(ISBLANK(Stikprøve!E165)=TRUE,0,ABS(Stikprøve!E165))","v":0},null,null,{"$f":"IF(ISBLANK(Stikprøve!F165)=TRUE,0,ABS(Stikprøve!F165))","v":0},null,null,null,null,"","","","","","","","",""]
[null,null,null,null,null,null,null,null,null,{"$f":"IF(ISBLANK(Stikprøve!D166)=TRUE,0,ABS(Stikprøve!D166))","v":0},null,null,{"$f":"IF(ISBLANK(Stikprøve!E166)=TRUE,0,ABS(Stikprøve!E166))","v":0},null,null,{"$f":"IF(ISBLANK(Stikprøve!F166)=TRUE,0,ABS(Stikprøve!F166))","v":0},null,null,null,null,"","","","","","","","",""]
[null,null,null,null,null,null,null,null,null,{"$f":"IF(ISBLANK(Stikprøve!D167)=TRUE,0,ABS(Stikprøve!D167))","v":0},null,null,{"$f":"IF(ISBLANK(Stikprøve!E167)=TRUE,0,ABS(Stikprøve!E167))","v":0},null,null,{"$f":"IF(ISBLANK(Stikprøve!F167)=TRUE,0,ABS(Stikprøve!F167))","v":0},null,null,null,null,"","","","","","","","",""]
[null,null,null,null,null,null,null,null,null,{"$f":"IF(ISBLANK(Stikprøve!D168)=TRUE,0,ABS(Stikprøve!D168))","v":0},null,null,{"$f":"IF(ISBLANK(Stikprøve!E168)=TRUE,0,ABS(Stikprøve!E168))","v":0},null,null,{"$f":"IF(ISBLANK(Stikprøve!F168)=TRUE,0,ABS(Stikprøve!F168))","v":0},null,null,null,null,"","","","","","","","",""]
[null,null,null,null,null,null,null,null,null,{"$f":"IF(ISBLANK(Stikprøve!D169)=TRUE,0,ABS(Stikprøve!D169))","v":0},null,null,{"$f":"IF(ISBLANK(Stikprøve!E169)=TRUE,0,ABS(Stikprøve!E169))","v":0},null,null,{"$f":"IF(ISBLANK(Stikprøve!F169)=TRUE,0,ABS(Stikprøve!F169))","v":0},null,null,null,null,"","","","","","","","",""]
[null,null,null,null,null,null,null,null,null,{"$f":"IF(ISBLANK(Stikprøve!D170)=TRUE,0,ABS(Stikprøve!D170))","v":0},null,null,{"$f":"IF(ISBLANK(Stikprøve!E170)=TRUE,0,ABS(Stikprøve!E170))","v":0},null,null,{"$f":"IF(ISBLANK(Stikprøve!F170)=TRUE,0,ABS(Stikprøve!F170))","v":0},null,null,null,null,"","","","","","","","",""]

{"sheet":"Graf til metode","index":4,"n_rows":0,"n_cols":0,"rows_kept":0,"cut":false,"hidden":true,"merged":[]}